bitfinex/quotes_BTCUSD_20220120
["timestamp","ask_amount","ask_price","bid_price","bid_amount"]
[1642638167127,0.002,41843.0,41842.0,1.35348225]
[1642638168471,0.002,41843.0,41842.0,1.34248225]
[1642638169072,0.002,41843.0,41842.0,1.35348225]
[1642638170373,0.002,41843.0,41842.0,1.34248225]
[1642638171176,0.002,41843.0,41842.0,1.35348225]
[1642638171376,0.0509806,41848.0,41845.0,0.55]
[1642638171576,0.0509806,41848.0,41847.0,0.94601034]
[1642638171775,0.0509806,41848.0,41847.0,1.66727553]
[1642638171977,0.0509806,41848.0,41847.0,1.96192806]
[1642638172233,0.0509806,41848.0,41847.0,1.96318789]
[1642638172835,0.0509806,41848.0,41847.0,1.97944789]
[1642638173035,0.0509806,41848.0,41847.0,1.99144789]
[1642638173637,0.0509806,41848.0,41847.0,1.40122996]
[1642638174037,0.0509806,41848.0,41847.0,1.36175347]
[1642638174238,0.0509806,41848.0,41847.0,1.06623077]
[1642638174437,0.0509806,41848.0,41847.0,1.35236906]
[1642638175038,0.0509806,41848.0,41847.0,1.36436906]
[1642638175238,0.0509806,41848.0,41847.0,1.15993446]
[1642638176378,0.0509806,41848.0,41847.0,1.14793446]
[1642638177077,0.0509806,41848.0,41847.0,1.15993446]
[1642638178377,0.0509806,41848.0,41847.0,1.39230844]
[1642638179177,0.0509806,41848.0,41847.0,1.40430844]
[1642638180327,0.0509806,41848.0,41847.0,0.47550583]
[1642638180528,0.0509806,41848.0,41847.0,0.46350583]
[1642638181127,0.0509806,41848.0,41847.0,0.47550583]
[1642638181328,0.0509806,41848.0,41847.0,0.474246]
[1642638181529,0.0509806,41848.0,41847.0,0.414526]
[1642638181930,0.0509806,41848.0,41847.0,0.02826]
[1642638182132,0.6509806,41848.0,41847.0,0.012]
[1642638182334,0.6509806,41848.0,41843.0,0.01626]
[1642638182529,0.8107246,41848.0,41847.0,0.24]
[1642638182738,0.7509806,41848.0,41847.0,0.24]
[1642638182929,0.1509806,41848.0,41847.0,0.24]
[1642638183132,0.1579806,41848.0,41847.0,0.257]
[1642638184783,0.40259584,41848.0,41847.0,0.257]
[1642638184987,0.39559584,41848.0,41847.0,0.24]
[1642638185183,0.43459584,41848.0,41847.0,0.248]
[1642638186483,0.39559584,41848.0,41847.0,0.24]
[1642638187083,0.43259584,41848.0,41847.0,0.248]
[1642638187929,0.38259584,41848.0,41847.0,0.248]
[1642638188331,0.34559584,41848.0,41847.0,0.24]
[1642638189233,0.38459584,41848.0,41847.0,0.248]
[1642638190234,0.1399806,41848.0,41847.0,0.248]
[1642638190434,0.1009806,41848.0,41847.0,0.24]
[1642638190637,0.0509806,41848.0,41847.0,0.24]
[1642638191078,0.1009806,41848.0,41847.0,0.24]
[1642638191279,0.1249806,41848.0,41847.0,0.25]
[1642638192381,0.1728806,41848.0,41847.0,0.25]
[1642638193080,0.1728806,41848.0,41847.0,0.24]
[1642638193081,0.2086256,41848.0,41847.0,0.24]
[1642638193280,0.2486256,41848.0,41847.0,0.248]
[1642638195028,0.2086256,41848.0,41847.0,0.24]
[1642638195231,0.2476256,41848.0,41847.0,0.243]
[1642638196030,0.9476256,41848.0,41847.0,0.243]
[1642638196430,1.0476256,41848.0,41847.0,0.243]
[1642638196630,1.0086256,41848.0,41847.0,0.24]
[1642638197029,1.0205656,41848.0,41847.0,0.24]
[1642638197230,1.0535656,41848.0,41847.0,0.24]
[1642638198475,0.3205656,41848.0,41847.0,0.24]
[1642638198675,0.2205656,41848.0,41847.0,0.24]
[1642638198878,0.3205656,41848.0,41847.0,0.24]
[1642638199077,0.7705656,41848.0,41847.0,0.24]
[1642638199276,0.7995656,41848.0,41847.0,0.24]
[1642638200483,0.7705656,41848.0,41847.0,0.24]
[1642638200880,0.7705656,41848.0,41847.0,0.2399131]
[1642638201081,0.3205656,41848.0,41847.0,0.2399131]
[1642638201282,0.3205656,41848.0,41842.0,3.51e-06]
[1642638201283,0.059757,41846.0,41842.0,3.51e-06]
[1642638201481,0.05975696,41844.0,41842.0,3.51e-06]
[1642638201881,0.15975696,41844.0,41842.0,0.24000351]
[1642638202330,0.31804913,41843.0,41842.0,0.24000351]
[1642638203335,0.36604913,41843.0,41842.0,0.24700351]
[1642638204533,0.31804913,41843.0,41842.0,0.24000351]
[1642638205333,0.36504913,41843.0,41842.0,0.24400351]
[1642638206978,0.36504913,41843.0,41842.0,0.24000351]
[1642638207179,0.36504913,41843.0,41842.0,0.24400351]
[1642638208385,0.31804913,41843.0,41842.0,0.24000351]
[1642638209285,0.41094913,41843.0,41842.0,0.24400351]
[1642638209484,0.16534913,41843.0,41842.0,0.24400351]
[1642638209932,0.66534913,41843.0,41842.0,0.24400351]
[1642638210529,0.62034913,41843.0,41842.0,0.24000351]
[1642638211329,0.66834913,41843.0,41842.0,0.24400351]
[1642638212730,0.62034913,41843.0,41842.0,0.24000351]
[1642638213331,0.66834913,41843.0,41842.0,0.24400351]
[1642638214486,0.66834913,41843.0,41842.0,0.24000351]
[1642638214686,0.62034913,41843.0,41842.0,0.24000351]
[1642638215284,0.66834913,41843.0,41842.0,0.24400351]
[1642638216485,0.62034913,41843.0,41842.0,0.24000351]
[1642638217332,0.66834913,41843.0,41842.0,0.24400351]
[1642638218536,0.62034913,41843.0,41842.0,0.24000351]
[1642638219136,0.72034913,41843.0,41842.0,0.24000351]
[1642638219336,0.72034913,41843.0,41842.0,0.24400351]
[1642638219337,0.78028913,41843.0,41842.0,0.24400351]
[1642638219536,0.68028913,41843.0,41842.0,0.24400351]
[1642638220738,0.63228913,41843.0,41842.0,0.24000351]
[1642638220977,0.13228913,41843.0,41842.0,0.24000351]
[1642638221380,0.18028913,41843.0,41842.0,0.24400351]
[1642638222678,0.13228913,41843.0,41842.0,0.24000351]
[1642638223280,0.18028913,41843.0,41842.0,0.24400351]
[1642638224483,0.18028913,41843.0,41842.0,0.24000351]
[1642638224731,0.13228913,41843.0,41842.0,0.24000351]
[1642638225331,0.18028913,41843.0,41842.0,0.24400351]
[1642638226731,0.13228913,41843.0,41842.0,0.24000351]
[1642638226933,0.08438913,41843.0,41842.0,0.24000351]
[1642638227332,0.13238913,41843.0,41842.0,0.24400351]
[1642638228681,0.05994,41843.0,41842.0,0.24400351]
[1642638228882,0.048,41843.0,41842.0,0.24400351]
[1642638229282,0.21951296,41844.0,41842.0,0.24300351]
[1642638229484,0.047,41843.0,41842.0,0.24300351]
[1642638231185,0.159756,41844.0,41842.0,0.24000351]
[1642638231388,0.159756,41844.0,41842.0,0.24400351]
[1642638231391,0.032,41843.0,41842.0,0.24400351]
[1642638232530,0.1,41843.0,41842.0,0.24000351]
[1642638233329,0.032,41843.0,41842.0,0.24400351]
[1642638233528,0.03192875,41843.0,41842.0,0.24400351]
[1642638233927,0.03192875,41843.0,41842.0,0.63026951]
[1642638234133,0.03192875,41843.0,41842.0,0.90340135]
[1642638234527,0.00130019,41847.0,41842.0,0.89940135]
[1642638234729,0.00130019,41847.0,41843.0,0.386266]
[1642638234927,0.00130019,41847.0,41843.0,0.446]
[1642638234928,6.876e-05,41846.0,41843.0,0.446]
[1642638235330,6.876e-05,41846.0,41843.0,0.456]
[1642638235529,6.876e-05,41846.0,41844.0,0.31412699]
[1642638235729,6.876e-05,41846.0,41845.0,0.386266]
[1642638236181,6.876e-05,41846.0,41845.0,0.059729]
[1642638237486,6.876e-05,41846.0,41845.0,0.012]
[1642638238282,0.29393578,41846.0,41845.0,0.012]
[1642638238483,0.34393578,41846.0,41845.0,0.012]
[1642638238684,0.34393578,41846.0,41842.0,0.24]
[1642638238883,0.31360144,41845.0,41842.0,0.24]
[1642638239387,0.31360144,41845.0,41842.0,0.251]
[1642638240035,0.37334944,41845.0,41842.0,0.251]
[1642638240636,0.37334944,41845.0,41842.0,0.24]
[1642638241236,0.43309698,41845.0,41842.0,0.24]
[1642638241443,0.46109698,41845.0,41842.0,0.25]
[1642638242640,0.43309698,41845.0,41842.0,0.24]
[1642638242844,0.0979,41844.0,41842.0,0.24]
[1642638243041,0.207657,41844.0,41842.0,0.24]
[1642638243240,0.05975511,41843.0,41842.0,0.24]
[1642638243481,0.10975511,41843.0,41842.0,0.241]
[1642638244784,0.10975511,41843.0,41842.0,0.24]
[1642638245385,0.14475511,41843.0,41842.0,0.245]
[1642638246586,0.14475511,41843.0,41842.0,0.24]
[1642638246886,0.10975511,41843.0,41842.0,0.24]
[1642638247537,0.14475511,41843.0,41842.0,0.245]
[1642638248837,0.10975511,41843.0,41842.0,0.24]
[1642638249237,0.05,41843.0,41842.0,0.24]
[1642638249437,0.085,41843.0,41842.0,0.245]
[1642638250737,0.05,41843.0,41842.0,0.24]
[1642638251487,0.087,41843.0,41842.0,0.245]
[1642638252787,0.087,41843.0,41842.0,0.24]
[1642638252788,0.05,41843.0,41842.0,0.24]
[1642638253388,0.587,41843.0,41842.0,0.245]
[1642638253589,0.687,41843.0,41842.0,0.245]
[1642638254734,0.16194,41843.0,41842.0,0.24]
[1642638255032,0.06194,41843.0,41842.0,0.24]
[1642638255433,0.10794,41843.0,41842.0,0.245]
[1642638256636,0.10794,41843.0,41842.0,0.24]
[1642638256838,0.06194,41843.0,41842.0,0.24]
[1642638257340,0.36194,41843.0,41842.0,0.24]
[1642638257537,0.40494,41843.0,41842.0,0.245]
[1642638257736,0.50494,41843.0,41842.0,0.245]
[1642638258584,0.20494,41843.0,41842.0,0.245]
[1642638258783,0.16194,41843.0,41842.0,0.24]
[1642638258983,0.06194,41843.0,41842.0,0.24]
[1642638259184,0.05,41843.0,41842.0,0.24]
[1642638259586,0.093,41843.0,41842.0,0.245]
[1642638260386,0.09292294,41843.0,41842.0,0.245]
[1642638260787,0.04992294,41843.0,41842.0,0.24]
[1642638260988,0.109744,41845.0,41842.0,0.24]
[1642638261186,0.059744,41845.0,41842.0,0.24]
[1642638261388,0.05,41844.0,41842.0,0.24]
[1642638261686,0.05,41844.0,41842.0,0.243]
[1642638261888,0.074,41845.0,41842.0,0.243]
[1642638262087,0.124,41845.0,41843.0,0.059741]
[1642638262344,0.074,41845.0,41842.0,0.243]
[1642638262744,0.074,41845.0,41842.0,0.24]
[1642638262745,0.16949101,41845.0,41842.0,0.24]
[1642638262944,0.109744,41845.0,41842.0,0.24]
[1642638263147,0.05,41844.0,41842.0,0.24]
[1642638263546,0.05,41845.0,41842.0,0.244]
[1642638263748,0.05974798,41844.0,41842.0,0.244]
[1642638264149,0.11949598,41844.0,41842.0,0.244]
[1642638264350,0.05,41843.0,41842.0,0.244]
[1642638264749,0.05,41843.0,41842.0,0.24]
[1642638265551,0.05,41843.0,41842.0,0.245]
[1642638266184,0.29393578,41846.0,41842.0,0.245]
[1642638266382,0.34393578,41846.0,41842.0,0.245]
[1642638266582,0.39393578,41846.0,41842.0,0.245]
[1642638266783,0.39393578,41846.0,41842.0,0.24]
[1642638267484,0.059744,41845.0,41842.0,0.242]
[1642638268683,0.059744,41845.0,41842.0,0.24]
[1642638269284,0.11949125,41845.0,41842.0,0.24]
[1642638269484,0.059744,41845.0,41842.0,0.243]
[1642638269736,0.39393578,41846.0,41843.0,0.059743]
[1642638270340,0.29393578,41846.0,41843.0,0.059743]
[1642638270537,0.39393578,41846.0,41843.0,0.059743]
[1642638271342,0.10006876,41846.0,41843.0,0.119483]
[1642638271542,0.05006876,41846.0,41843.0,0.122483]
[1642638271739,0.10981176,41846.0,41843.0,0.003]
[1642638271940,6.876e-05,41846.0,41843.0,0.003]
[1642638272643,6.876e-05,41846.0,41842.0,0.24]
[1642638273042,0.059745,41845.0,41842.0,0.24]
[1642638273505,0.059745,41845.0,41842.0,0.246]
[1642638274908,0.059745,41845.0,41842.0,0.24]
[1642638275709,0.059745,41845.0,41842.0,0.246]
[1642638276009,0.11949154,41845.0,41842.0,0.246]
[1642638276811,0.11949154,41845.0,41842.0,0.24]
[1642638277435,0.059745,41845.0,41842.0,0.246]
[1642638278636,0.15981176,41846.0,41842.0,0.246]
[1642638278836,0.15981176,41846.0,41842.0,0.24]
[1642638278837,0.10006876,41846.0,41842.0,0.24]
[1642638279637,6.876e-05,41846.0,41842.0,0.245]
[1642638279939,0.11949043,41845.0,41842.0,0.245]
[1642638280137,0.05974643,41845.0,41842.0,0.245]
[1642638280738,0.05974643,41845.0,41842.0,0.24]
[1642638280984,0.05968546,41845.0,41842.0,0.24]
[1642638281184,0.11943146,41845.0,41842.0,0.24]
[1642638281683,0.16943146,41845.0,41842.0,0.246]
[1642638282282,0.40722966,41843.0,41842.0,0.246]
[1642638282683,0.45722966,41843.0,41842.0,0.24]
[1642638282884,0.10974974,41843.0,41842.0,0.24]
[1642638283483,0.10974974,41843.0,41842.0,0.247]
[1642638284936,0.10974974,41843.0,41842.0,0.24]
[1642638285541,0.10974974,41843.0,41842.0,0.247]
[1642638286740,0.10974974,41843.0,41842.0,0.24]
[1642638286940,0.15974974,41843.0,41842.0,0.24]
[1642638287540,0.15974974,41843.0,41842.0,0.248]
[1642638288892,0.15974974,41843.0,41842.0,0.24]
[1642638289492,0.15974974,41843.0,41842.0,0.248]
[1642638290694,0.15974974,41843.0,41842.0,0.24]
[1642638290898,0.10974974,41843.0,41842.0,0.24]
[1642638291493,0.10974974,41843.0,41842.0,0.247]
[1642638292535,0.05,41843.0,41842.0,0.247]
[1642638292735,0.05,41843.0,41842.0,0.24]
[1642638292936,0.05006876,41846.0,41842.0,0.24]
[1642638293337,0.43957499,41846.0,41842.0,0.24]
[1642638293642,0.05974606,41843.0,41842.0,0.245]
[1642638294837,0.05974606,41843.0,41842.0,0.24]
[1642638295439,0.05974606,41843.0,41842.0,0.247]
[1642638296709,0.05974606,41843.0,41842.0,0.24]
[1642638297510,0.05974606,41843.0,41842.0,0.247]
[1642638298714,0.10974606,41843.0,41842.0,0.24]
[1642638298917,0.05974606,41843.0,41842.0,0.24]
[1642638299314,0.10974606,41843.0,41842.0,0.24]
[1642638299514,0.10974606,41843.0,41842.0,0.248]
[1642638300541,0.05,41843.0,41842.0,0.248]
[1642638300739,0.05006876,41846.0,41842.0,0.24]
[1642638301544,0.13981376,41846.0,41842.0,0.245]
[1642638302744,0.05974412,41845.0,41842.0,0.24]
[1642638302944,0.059748,41844.0,41842.0,0.24]
[1642638303586,0.089748,41844.0,41842.0,0.247]
[1642638304190,0.05974907,41843.0,41842.0,0.667]
[1642638304789,0.05974907,41843.0,41842.0,0.66]
[1642638305290,6.876e-05,41846.0,41843.0,7.159e-05]
[1642638305291,0.05974461,41845.0,41843.0,7.159e-05]
[1642638306590,0.11948961,41845.0,41843.0,7.159e-05]
[1642638307537,0.15048961,41845.0,41843.0,0.00607159]
[1642638308839,6.876e-05,41846.0,41843.0,7.159e-05]
[1642638309641,0.02906876,41846.0,41843.0,0.00407159]
[1642638309942,0.07906876,41846.0,41843.0,0.00407159]
[1642638310341,0.07900193,41846.0,41843.0,0.00407159]
[1642638310743,0.05000193,41846.0,41843.0,7.159e-05]
[1642638310988,6.876e-05,41846.0,41843.0,7.159e-05]
[1642638311189,0.05006876,41846.0,41843.0,7.159e-05]
[1642638311389,6.876e-05,41846.0,41843.0,7.159e-05]
[1642638311589,6.876e-05,41846.0,41843.0,0.00607159]
[1642638312191,6.876e-05,41846.0,41845.0,0.059737]
[1642638312589,6.876e-05,41846.0,41845.0,0.446003]
[1642638312788,6.876e-05,41846.0,41845.0,0.746003]
[1642638313288,6.876e-05,41846.0,41845.0,0.9451172]
[1642638313589,6.876e-05,41846.0,41845.0,1.28887051]
[1642638313788,6.876e-05,41846.0,41845.0,1.53631753]
[1642638313987,6.876e-05,41846.0,41845.0,1.33720333]
[1642638314187,6.876e-05,41846.0,41845.0,1.20713521]
[1642638314591,6.876e-05,41846.0,41845.0,1.53889095]
[1642638315042,6.876e-05,41846.0,41845.0,1.51093095]
[1642638315441,6.876e-05,41846.0,41845.0,1.49893095]
[1642638315641,6.876e-05,41846.0,41845.0,1.51393095]
[1642638316841,6.876e-05,41846.0,41845.0,1.49893095]
[1642638317547,6.876e-05,41846.0,41845.0,1.51393095]
[1642638318890,6.876e-05,41846.0,41845.0,1.19893095]
[1642638319591,6.876e-05,41846.0,41845.0,1.21393095]
[1642638320891,6.876e-05,41846.0,41845.0,1.19893095]
[1642638321691,6.876e-05,41846.0,41845.0,1.43317521]
[1642638321892,0.00878573,41849.0,41846.0,0.85]
[1642638322093,0.00878573,41849.0,41848.0,0.81474454]
[1642638322349,0.01005351,41851.0,41849.0,0.65]
[1642638322549,0.01005351,41851.0,41850.0,1.5121538]
[1642638323050,0.01005351,41851.0,41850.0,1.0121538]
[1642638323250,0.01005351,41851.0,41850.0,1.0718698]
[1642638323451,0.01005351,41851.0,41850.0,1.0881298]
[1642638323651,0.00063379,41859.0,41851.0,0.4]
[1642638323953,0.00010314,41852.0,41851.0,0.4]
[1642638324150,0.00010314,41852.0,41851.0,0.786266]
[1642638324351,0.00010314,41852.0,41851.0,1.325705]
[1642638324551,0.00010314,41852.0,41851.0,1.401686]
[1642638324950,0.00010314,41852.0,41851.0,1.341967]
[1642638325551,0.00010314,41852.0,41851.0,1.357967]
[1642638326788,0.00010314,41852.0,41851.0,1.341967]
[1642638327689,0.00010314,41852.0,41851.0,1.357967]
[1642638328393,0.00010314,41852.0,41851.0,1.29950967]
[1642638328690,0.00010314,41852.0,41851.0,1.64740967]
[1642638329490,0.00010314,41852.0,41851.0,1.53140967]
[1642638329744,0.00010314,41852.0,41851.0,1.54840967]
[1642638330547,0.00010314,41852.0,41851.0,2.14840967]
[1642638330744,0.00010314,41852.0,41851.0,1.82660967]
[1642638331045,0.00121397,41861.0,41852.0,0.95]
[1642638331245,0.00121397,41861.0,41859.0,0.0012506]
[1642638331445,0.0011,41862.0,41859.0,0.4354166]
[1642638331643,0.00121404,41861.0,41859.0,0.4354166]
[1642638332646,0.0011,41862.0,41859.0,0.4354166]
[1642638332847,0.00231408,41862.0,41859.0,0.4354166]
[1642638333049,0.00231408,41862.0,41859.0,0.73324698]
[1642638333245,0.00231408,41862.0,41859.0,0.4354166]
[1642638333691,0.00231408,41862.0,41859.0,0.4504166]
[1642638333891,0.0011,41862.0,41859.0,0.4504166]
[1642638334090,0.00231408,41862.0,41859.0,0.4504166]
[1642638334389,0.00231408,41862.0,41859.0,1.1104166]
[1642638334589,0.00231408,41862.0,41859.0,1.109166]
[1642638334790,0.00231408,41862.0,41859.0,1.046266]
[1642638334990,0.0011,41862.0,41859.0,1.046266]
[1642638335291,0.00231408,41862.0,41859.0,1.046266]
[1642638335694,0.00231408,41862.0,41859.0,1.062266]
[1642638336293,0.00231408,41862.0,41859.0,1.35869948]
[1642638336294,0.0011,41862.0,41859.0,1.35869948]
[1642638336491,0.00231408,41862.0,41859.0,1.35869948]
[1642638336691,0.00231408,41862.0,41859.0,1.062266]
[1642638336890,0.00231408,41862.0,41859.0,1.046266]
[1642638337547,0.0011,41862.0,41859.0,1.062266]
[1642638337753,0.00231408,41862.0,41859.0,1.062266]
[1642638338647,0.0011,41862.0,41859.0,1.062266]
[1642638338847,0.00231408,41862.0,41859.0,1.046266]
[1642638339648,0.00231408,41862.0,41859.0,1.062266]
[1642638339848,0.0011,41862.0,41859.0,1.062266]
[1642638340149,0.00231408,41862.0,41859.0,1.062266]
[1642638340649,0.00231408,41862.0,41860.0,0.50789588]
[1642638340851,0.00231408,41862.0,41861.0,0.386266]
[1642638341092,0.0011,41862.0,41861.0,0.386266]
[1642638341294,0.0011,41862.0,41860.0,0.50789588]
[1642638341593,0.0011,41862.0,41861.0,0.417526]
[1642638341991,0.0012719,41862.0,41861.0,0.417526]
[1642638342792,0.0012719,41862.0,41861.0,0.402526]
[1642638343592,0.0012719,41862.0,41861.0,0.417526]
[1642638344842,0.0012719,41862.0,41861.0,0.402526]
[1642638345741,0.0012719,41862.0,41861.0,0.417526]
[1642638346742,0.0012719,41862.0,41861.0,0.402526]
[1642638346943,0.0012719,41862.0,41861.0,0.382526]
[1642638347842,0.0012719,41862.0,41861.0,0.397526]
[1642638348043,0.0012719,41862.0,41861.0,0.401656]
[1642638348897,0.0012719,41862.0,41861.0,0.386656]
[1642638349698,0.0012719,41862.0,41861.0,0.401656]
[1642638350902,0.001,41863.0,41861.0,0.401656]
[1642638350903,0.001,41863.0,41862.0,0.37976586]
[1642638351100,0.001,41863.0,41862.0,0.82573886]
[1642638351698,0.001,41863.0,41862.0,0.83973886]
[1642638352359,0.001,41863.0,41862.0,0.84386886]
[1642638352563,1.00461403,41869.0,41863.0,0.385857]
[1642638352756,1.00461403,41869.0,41863.0,0.059712]
[1642638352956,6.876e-05,41866.0,41863.0,0.059712]
[1642638353158,6.876e-05,41866.0,41864.0,0.05373983]
[1642638353357,6.876e-05,41866.0,41865.0,0.00413]
[1642638354859,0.00040636,41868.0,41865.0,0.00413]
[1642638355060,0.00040636,41868.0,41865.0,0.063841]
[1642638355462,1.00461403,41869.0,41865.0,0.063841]
[1642638355662,1.00461403,41869.0,41865.0,0.01313]
[1642638355663,0.007526,41868.0,41865.0,0.01313]
[1642638356697,1.00461403,41869.0,41865.0,0.01313]
[1642638356897,0.007526,41868.0,41865.0,0.00413]
[1642638357097,0.067242,41868.0,41865.0,0.00413]
[1642638357496,0.067242,41868.0,41866.0,0.00413]
[1642638359845,0.067242,41868.0,41866.0,0.01213]
[1642638360247,0.059716,41868.0,41866.0,0.01213]
[1642638360948,0.059716,41868.0,41866.0,0.00413]
[1642638361648,0.007526,41867.0,41866.0,0.01313]
[1642638362249,0.62371021,41867.0,41866.0,0.009]
[1642638362650,0.88355021,41867.0,41866.0,0.009]
[1642638362848,0.88355021,41867.0,41861.0,0.00115669]
[1642638363048,0.059728,41865.0,41861.0,0.00115669]
[1642638363248,0.059728,41865.0,41862.0,6.876e-05]
[1642638363249,0.055426,41864.0,41862.0,6.876e-05]
[1642638363910,0.11515,41864.0,41862.0,6.876e-05]
[1642638364109,0.224874,41864.0,41862.0,6.876e-05]
[1642638364410,0.224874,41864.0,41861.0,0.00124269]
[1642638364807,0.13106044,41863.0,41861.0,0.00124269]
[1642638365007,0.9979,41862.0,41861.0,8.595e-05]
[1642638365208,1.07829431,41862.0,41861.0,8.595e-05]
[1642638365406,1.23508796,41862.0,41861.0,8.595e-05]
[1642638366607,1.63373062,41862.0,41861.0,8.595e-05]
[1642638367245,1.75320036,41862.0,41861.0,8.595e-05]
[1642638367446,1.3545577,41862.0,41861.0,8.595e-05]
[1642638367647,1.13508796,41862.0,41861.0,8.595e-05]
[1642638367847,0.12415965,41862.0,41861.0,8.595e-05]
[1642638368048,0.06221965,41862.0,41861.0,8.595e-05]
[1642638368249,0.0479,41862.0,41861.0,8.595e-05]
[1642638369746,0.0479,41862.0,41861.0,0.00408595]
[1642638371097,0.0479,41862.0,41861.0,8.595e-05]
[1642638371897,0.0479,41862.0,41861.0,0.00308595]
[1642638372997,0.3479,41862.0,41861.0,8.595e-05]
[1642638373799,0.3479,41862.0,41861.0,0.00308595]
[1642638374000,0.0479,41862.0,41861.0,0.00308595]
[1642638375045,0.5479,41862.0,41861.0,8.595e-05]
[1642638375244,0.83542575,41862.0,41861.0,8.595e-05]
[1642638375844,0.83542575,41862.0,41861.0,0.00408595]
[1642638377045,0.83542575,41862.0,41861.0,8.595e-05]
[1642638377249,0.33542575,41862.0,41861.0,8.595e-05]
[1642638377646,0.055426,41862.0,41861.0,8.595e-05]
[1642638377845,0.055426,41862.0,41861.0,0.00408595]
[1642638378049,0.31603518,41862.0,41861.0,0.00408595]
[1642638378793,0.41603518,41862.0,41861.0,0.00408595]
[1642638378994,1.47790701,41862.0,41861.0,8.595e-05]
[1642638379392,1.48470066,41862.0,41861.0,8.595e-05]
[1642638380993,1.60416867,41862.0,41861.0,8.595e-05]
[1642638381693,2.87316867,41862.0,41861.0,8.595e-05]
[1642638381895,0.059746,41856.0,41841.0,0.356874]
[1642638382093,0.059746,41856.0,41841.0,0.29713]
[1642638382094,0.00124055,41854.0,41841.0,0.29713]
[1642638382348,0.0479,41853.0,41844.0,0.00029223]
[1642638382547,0.36207358,41852.0,41844.0,0.00029223]
[1642638382748,0.31104813,41847.0,41844.0,0.00029223]
[1642638382945,0.58508597,41847.0,41844.0,0.00029223]
[1642638383146,0.64483497,41847.0,41844.0,0.00029223]
[1642638383346,0.37079713,41847.0,41846.0,0.00059276]
[1642638383546,0.37832313,41847.0,41846.0,0.00059276]
[1642638383745,0.37832313,41847.0,41846.0,0.00085061]
[1642638383946,0.43807213,41847.0,41846.0,0.00085061]
[1642638384346,0.43807213,41847.0,41846.0,0.00025785]
[1642638384548,0.43807213,41847.0,41846.0,0.24025785]
[1642638385147,0.127024,41847.0,41846.0,0.24025785]
[1642638385351,0.059749,41847.0,41846.0,0.24025785]
[1642638386397,0.3141648,41847.0,41846.0,0.24025785]
[1642638386597,0.067275,41847.0,41846.0,0.24025785]
[1642638386797,0.067275,41847.0,41846.0,0.66025785]
[1642638386998,0.059749,41847.0,41846.0,0.66025785]
[1642638387800,0.0479,41848.0,41846.0,0.66025785]
[1642638388200,0.0479,41848.0,41847.0,0.00024066]
[1642638389001,0.107644,41848.0,41847.0,0.00024066]
[1642638389848,0.0499,41848.0,41847.0,0.00024066]
[1642638391050,0.0479,41848.0,41847.0,0.00024066]
[1642638392051,0.05,41850.0,41847.0,0.00024066]
[1642638392452,0.11194,41853.0,41847.0,0.00024066]
[1642638392652,0.06194,41853.0,41847.0,0.00024066]
[1642638393052,0.01194,41853.0,41848.0,0.24853597]
[1642638393493,0.01194,41853.0,41849.0,0.00020628]
[1642638393896,0.05,41855.0,41849.0,0.00020628]
[1642638394095,0.007526,41854.0,41849.0,0.00135225]
[1642638394495,0.01194,41857.0,41850.0,0.05992209]
[1642638394696,0.41740129,41859.0,41850.0,0.11367326]
[1642638394895,0.41740129,41859.0,41851.0,0.0043019]
[1642638394896,0.41616957,41859.0,41851.0,0.0043019]
[1642638395096,0.75493416,41859.0,41851.0,0.0043019]
[1642638395295,0.75493416,41859.0,41852.0,0.00130054]
[1642638395499,0.007526,41858.0,41852.0,0.00130054]
[1642638395695,0.007526,41858.0,41854.0,0.059725]
[1642638395897,0.007526,41858.0,41854.0,0.119451]
[1642638396094,0.007526,41858.0,41855.0,0.00010314]
[1642638396697,0.007526,41858.0,41854.0,0.00114577]
[1642638396896,0.007526,41858.0,41855.0,0.00010314]
[1642638397350,0.06725936,41858.0,41855.0,0.00010314]
[1642638397649,0.27045204,41857.0,41855.0,0.00010314]
[1642638397854,0.007526,41856.0,41855.0,0.00010314]
[1642638398052,0.057526,41856.0,41855.0,0.00010314]
[1642638398751,0.007526,41856.0,41855.0,0.00010314]
[1642638399151,0.007526,41856.0,41853.0,0.00114579]
[1642638399352,0.007526,41856.0,41854.0,0.00012033]
[1642638400354,0.007526,41856.0,41853.0,0.00114581]
[1642638400560,0.007526,41856.0,41854.0,0.00012033]
[1642638401403,0.007526,41856.0,41853.0,0.00114581]
[1642638401604,0.007526,41856.0,41854.0,0.00012033]
[1642638402407,0.067259,41856.0,41854.0,0.00012033]
[1642638402605,0.067259,41856.0,41853.0,0.00114581]
[1642638402805,0.067259,41856.0,41854.0,0.00012033]
[1642638403407,0.12699509,41856.0,41854.0,0.00012033]
[1642638403807,0.12699509,41856.0,41853.0,0.00114581]
[1642638404007,0.12699509,41856.0,41854.0,0.00012033]
[1642638404408,0.18673209,41856.0,41854.0,0.00012033]
[1642638405144,0.18673209,41856.0,41853.0,0.00114581]
[1642638405346,0.18673209,41856.0,41854.0,0.00012033]
[1642638405545,0.65138416,41855.0,41854.0,0.00012033]
[1642638405747,0.65891016,41855.0,41854.0,0.00012033]
[1642638405945,0.70891016,41855.0,41854.0,0.00012033]
[1642638406345,0.70891016,41855.0,41853.0,0.24]
[1642638406546,1.37267092,41854.0,41853.0,0.24]
[1642638406747,1.06641052,41854.0,41853.0,0.24]
[1642638406946,1.12835052,41854.0,41853.0,0.24013752]
[1642638407146,1.22835052,41854.0,41853.0,0.24013752]
[1642638407946,1.23835052,41854.0,41853.0,0.24013752]
[1642638409103,0.73214716,41854.0,41853.0,0.24013752]
[1642638409302,1.05902027,41854.0,41853.0,0.24013752]
[1642638409703,1.04902027,41854.0,41853.0,0.24013752]
[1642638409903,1.06002027,41854.0,41853.0,0.24013752]
[1642638410106,2.32902027,41854.0,41853.0,0.24013752]
[1642638410304,2.38876127,41854.0,41853.0,0.24013752]
[1642638411108,2.37776127,41854.0,41853.0,0.24013752]
[1642638411906,2.38876127,41854.0,41853.0,0.24013752]
[1642638413147,2.37776127,41854.0,41853.0,0.24013752]
[1642638413350,1.10876127,41854.0,41853.0,0.24013752]
[1642638413948,1.12076127,41854.0,41853.0,0.24013752]
[1642638415348,1.10876127,41854.0,41853.0,0.24013752]
[1642638415998,1.12076127,41854.0,41853.0,0.24013752]